[Event "Early-Titled-Tuesday-Blitz-February-06-2024"]
[Site "Chess.com"]
[Date "2024.02.06"]
[Round "7"]
[White "Chessdude1987"]
[Black "ferdipy"]
[Result "1-0"]
[WhiteElo "2288"]
[BlackElo "2391"]
[TimeControl "180+1"]
[EndTime "9:17:06 PST"]
[Termination "Chessdude1987 won by resignation"]

1. e4 {[%clk 0:03:00.9]} 1... e6 {[%clk 0:02:32.6]} 2. d3 {[%clk 0:02:59.4]}
2... d5 {[%clk 0:02:32.9]} 3. Nd2 {[%clk 0:02:58.7]} 3... Nf6 {[%clk 0:02:33.4]}
4. c3 {[%clk 0:02:54]} 4... dxe4 {[%clk 0:02:29.5]} 5. dxe4 {[%clk 0:02:53.7]}
5... e5 {[%clk 0:02:29.8]} 6. Be2 {[%clk 0:02:49.2]} 6... a5 {[%clk 0:02:28.8]}
7. h3 {[%clk 0:02:47.9]} 7... Bc5 {[%clk 0:02:28.8]} 8. Qc2 {[%clk 0:02:39.8]}
8... O-O {[%clk 0:02:27.3]} 9. Ngf3 {[%clk 0:02:31.3]} 9... Nc6 {[%clk
0:02:22.8]} 10. g4 {[%clk 0:02:09.3]} 10... h6 {[%clk 0:02:20.3]} 11. Rg1 {[%clk
0:02:02.4]} 11... Nh7 {[%clk 0:02:18.5]} 12. h4 {[%clk 0:01:56.3]} 12... Be6
{[%clk 0:02:10]} 13. Nc4 {[%clk 0:01:55.3]} 13... Re8 {[%clk 0:01:59.5]} 14. Bd2
{[%clk 0:01:53.7]} 14... Rb8 {[%clk 0:01:45.8]} 15. Ne3 {[%clk 0:01:52.2]} 15...
Bf8 {[%clk 0:01:41.4]} 16. Nf5 {[%clk 0:01:50.7]} 16... Bxf5 {[%clk 0:01:35.4]}
17. gxf5 {[%clk 0:01:49.2]} 17... Kh8 {[%clk 0:01:35.9]} 18. Bc4 {[%clk
0:01:41.5]} 18... Qf6 {[%clk 0:01:26.6]} 19. O-O-O {[%clk 0:01:33.1]} 19... b5
{[%clk 0:01:23.3]} 20. Bd5 {[%clk 0:01:33]} 20... Ne7 {[%clk 0:01:22.7]} 21. Bg5
{[%clk 0:01:17.4]} 21... hxg5 {[%clk 0:01:17.9]} 22. hxg5 {[%clk 0:01:17.3]}
22... Qb6 {[%clk 0:01:17.8]} 23. Bxf7 {[%clk 0:01:14.8]} 23... Red8 {[%clk
0:01:07.1]} 24. Rxd8 {[%clk 0:00:59]} 24... Rxd8 {[%clk 0:00:55.5]} 25. g6
{[%clk 0:00:59.2]} 25... Qf6 {[%clk 0:00:51.8]} 26. Rh1 {[%clk 0:00:58.3]} 26...
Nxg6 {[%clk 0:00:32.2]} 27. fxg6 {[%clk 0:00:57.7]} 27... Qf4+ {[%clk
0:00:29.8]} 28. Kb1 {[%clk 0:00:56.3]} 28... Qh6 {[%clk 0:00:15.9]} 29. Rxh6
{[%clk 0:00:54.2]} 29... gxh6 {[%clk 0:00:16.8]} 30. gxh7 {[%clk 0:00:53.1]}
30... Kg7 {[%clk 0:00:16.8]} 31. Bg8 {[%clk 0:00:52.3]} 31... Bc5 {[%clk
0:00:16]} 32. Nxe5 {[%clk 0:00:46.7]} 32... a4 {[%clk 0:00:15.1]} 1-0

[Event "Early-Titled-Tuesday-Blitz-February-06-2024"]
[Site "Chess.com"]
[Date "2024.02.06"]
[Round "7"]
[White "FoxOnTheRun97"]
[Black "AttilaTurzo"]
[Result "1-0"]
[WhiteElo "2639"]
[BlackElo "2454"]
[TimeControl "180+1"]
[EndTime "9:17:07 PST"]
[Termination "FoxOnTheRun97 won by checkmate"]

1. d4 {[%clk 0:03:00.9]} 1... Nf6 {[%clk 0:02:59.9]} 2. Bg5 {[%clk 0:03:00.8]}
2... e6 {[%clk 0:02:56.6]} 3. e4 {[%clk 0:03:00.6]} 3... h6 {[%clk 0:02:56.6]}
4. Bxf6 {[%clk 0:02:58.8]} 4... Qxf6 {[%clk 0:02:57.5]} 5. c3 {[%clk 0:02:59.5]}
5... d6 {[%clk 0:02:54.2]} 6. Bd3 {[%clk 0:03:00]} 6... b6 {[%clk 0:02:48.9]} 7.
Ne2 {[%clk 0:03:00.2]} 7... Nd7 {[%clk 0:02:47.7]} 8. O-O {[%clk 0:03:00.2]}
8... Bb7 {[%clk 0:02:48.3]} 9. Nd2 {[%clk 0:03:00.2]} 9... g6 {[%clk 0:02:47.4]}
10. a4 {[%clk 0:02:59.5]} 10... a6 {[%clk 0:02:40.9]} 11. a5 {[%clk 0:02:57.6]}
11... b5 {[%clk 0:02:39.7]} 12. Qb3 {[%clk 0:02:57.3]} 12... c5 {[%clk
0:02:35.8]} 13. c4 {[%clk 0:02:50]} 13... b4 {[%clk 0:02:10.5]} 14. Nf3 {[%clk
0:02:20.5]} 14... Bg7 {[%clk 0:02:04.1]} 15. Qa4 {[%clk 0:01:29.6]} 15... Qe7
{[%clk 0:02:02.6]} 16. e5 {[%clk 0:01:20.5]} 16... dxe5 {[%clk 0:01:47.1]} 17.
dxc5 {[%clk 0:01:19.3]} 17... Qxc5 {[%clk 0:01:46.2]} 18. Ng3 {[%clk 0:01:09.8]}
18... f5 {[%clk 0:01:43.8]} 19. Rad1 {[%clk 0:01:05.7]} 19... Bc6 {[%clk
0:01:41.7]} 20. Qc2 {[%clk 0:01:01.9]} 20... e4 {[%clk 0:01:41.4]} 21. Nxe4
{[%clk 0:01:00.2]} 21... fxe4 {[%clk 0:01:41.4]} 22. Bxe4 {[%clk 0:01:00.6]}
22... Bxe4 {[%clk 0:01:21.3]} 23. Qxe4 {[%clk 0:01:01.5]} 23... Kf7 {[%clk
0:01:21.8]} 24. Rxd7+ {[%clk 0:01:00.7]} 24... Kf6 {[%clk 0:01:09.5]} 25. Nd4
{[%clk 0:00:30.2]} 25... Qe5 {[%clk 0:00:45.2]} 26. Qxe5+ {[%clk 0:00:24.1]}
26... Kxe5 {[%clk 0:00:45.5]} 27. Re1+ {[%clk 0:00:24.7]} 27... Kf6 {[%clk
0:00:37.7]} 28. Rxe6+ {[%clk 0:00:23.6]} 28... Kg5 {[%clk 0:00:37.3]} 29. Rxg7
{[%clk 0:00:16.3]} 29... Rhd8 {[%clk 0:00:32.3]} 30. Rgxg6+ {[%clk 0:00:16.3]}
30... Kf4 {[%clk 0:00:28.2]} 31. g3# {[%clk 0:00:16.2]} 1-0

[Event "Early-Titled-Tuesday-Blitz-February-06-2024"]
[Site "Chess.com"]
[Date "2024.02.06"]
[Round "7"]
[White "Mistango"]
[Black "NFChess13"]
[Result "1-0"]
[WhiteElo "2486"]
[BlackElo "2645"]
[TimeControl "180+1"]
[EndTime "9:17:09 PST"]
[Termination "Mistango won by resignation"]

1. e4 {[%clk 0:02:54.1]} 1... e5 {[%clk 0:02:59.3]} 2. Nf3 {[%clk 0:02:53.3]}
2... Nf6 {[%clk 0:02:58.9]} 3. Nc3 {[%clk 0:02:52]} 3... Nc6 {[%clk 0:02:53.2]}
4. d4 {[%clk 0:02:51.8]} 4... exd4 {[%clk 0:02:50.7]} 5. Nxd4 {[%clk 0:02:52.7]}
5... d6 {[%clk 0:02:42.6]} 6. Nxc6 {[%clk 0:02:47.5]} 6... bxc6 {[%clk
0:02:42.7]} 7. Bd3 {[%clk 0:02:48.4]} 7... Be7 {[%clk 0:02:42.1]} 8. O-O {[%clk
0:02:43]} 8... O-O {[%clk 0:02:42.1]} 9. f4 {[%clk 0:02:41.4]} 9... Nd7 {[%clk
0:02:35.5]} 10. Qh5 {[%clk 0:02:32.6]} 10... g6 {[%clk 0:02:34]} 11. Qh6 {[%clk
0:02:32.6]} 11... Bf6 {[%clk 0:02:34.4]} 12. Bd2 {[%clk 0:02:17.2]} 12... Rb8
{[%clk 0:02:33.5]} 13. Rab1 {[%clk 0:02:16.2]} 13... Nc5 {[%clk 0:02:33.6]} 14.
f5 {[%clk 0:02:10.1]} 14... Nxd3 {[%clk 0:02:27.6]} 15. cxd3 {[%clk 0:02:09.6]}
15... Bg7 {[%clk 0:02:18.4]} 16. Qf4 {[%clk 0:02:08]} 16... Be5 {[%clk
0:02:18.3]} 17. Qh6 {[%clk 0:02:03.9]} 17... Qf6 {[%clk 0:02:12.3]} 18. Bg5
{[%clk 0:02:00.5]} 18... Qg7 {[%clk 0:02:11.6]} 19. Qh4 {[%clk 0:01:56.9]} 19...
Re8 {[%clk 0:01:54.2]} 20. f6 {[%clk 0:01:52.2]} 20... Qh8 {[%clk 0:01:50.6]}
21. Bh6 {[%clk 0:01:35.2]} 21... Bd4+ {[%clk 0:01:08.7]} 22. Kh1 {[%clk
0:01:34.1]} 22... Bxc3 {[%clk 0:00:51.3]} 23. Bg7 {[%clk 0:01:32.7]} 23... Bd4
{[%clk 0:00:47.2]} 24. Bxh8 {[%clk 0:01:29]} 24... Kxh8 {[%clk 0:00:47.6]} 25.
Qg5 {[%clk 0:01:15.5]} 25... Rb5 {[%clk 0:00:44.8]} 26. Qg3 {[%clk 0:01:09.9]}
26... Rh5 {[%clk 0:00:39.4]} 27. b3 {[%clk 0:01:07.6]} 27... Be5 {[%clk
0:00:38.9]} 28. Rf4 {[%clk 0:00:59.6]} 28... Re6 {[%clk 0:00:25.9]} 29. Qf3
{[%clk 0:00:56.4]} 29... Bxf4 {[%clk 0:00:24.9]} 30. Qxf4 {[%clk 0:00:56.5]}
30... Rb5 {[%clk 0:00:18.8]} 31. Rf1 {[%clk 0:00:54.1]} 31... g5 {[%clk
0:00:18.9]} 32. Qf3 {[%clk 0:00:50]} 32... Rc5 {[%clk 0:00:14.1]} 33. h3 {[%clk
0:00:47.4]} 33... Kg8 {[%clk 0:00:08.4]} 34. Qh5 {[%clk 0:00:47]} 34... Kf8
{[%clk 0:00:09]} 35. Qxh7 {[%clk 0:00:46.4]} 35... Ke8 {[%clk 0:00:09.6]} 36.
Qg8+ {[%clk 0:00:46.4]} 1-0

[Event "Early-Titled-Tuesday-Blitz-February-06-2024"]
[Site "Chess.com"]
[Date "2024.02.06"]
[Round "7"]
[White "Bekkedahl"]
[Black "boguszp"]
[Result "1/2-1/2"]
[WhiteElo "2225"]
[BlackElo "2085"]
[TimeControl "180+1"]
[EndTime "9:17:09 PST"]
[Termination "Game drawn by repetition"]

1. e4 {[%clk 0:03:00.9]} 1... c6 {[%clk 0:02:59.2]} 2. d4 {[%clk 0:03:00]} 2...
d5 {[%clk 0:02:59.7]} 3. exd5 {[%clk 0:03:00.1]} 3... cxd5 {[%clk 0:03:00.1]} 4.
Bd3 {[%clk 0:03:01]} 4... Nc6 {[%clk 0:02:59.4]} 5. c3 {[%clk 0:03:01.7]} 5...
g6 {[%clk 0:02:59.2]} 6. Bf4 {[%clk 0:03:01.9]} 6... Nf6 {[%clk 0:02:58.9]} 7.
Nd2 {[%clk 0:03:02]} 7... Bg7 {[%clk 0:02:59.4]} 8. Ngf3 {[%clk 0:03:02.2]} 8...
O-O {[%clk 0:02:59.7]} 9. h3 {[%clk 0:03:02]} 9... Bd7 {[%clk 0:02:56.5]} 10.
O-O {[%clk 0:03:01.9]} 10... Qc8 {[%clk 0:02:56.8]} 11. Qe2 {[%clk 0:03:01.2]}
11... Re8 {[%clk 0:02:55.4]} 12. Ne5 {[%clk 0:03:00.3]} 12... Bf5 {[%clk
0:02:48]} 13. Bxf5 {[%clk 0:02:58.6]} 13... Qxf5 {[%clk 0:02:47.4]} 14. Bh2
{[%clk 0:02:53.8]} 14... Ne4 {[%clk 0:02:38.6]} 15. Ndf3 {[%clk 0:02:34.8]}
15... Nxe5 {[%clk 0:02:30.2]} 16. Nxe5 {[%clk 0:02:33.5]} 16... Nd6 {[%clk
0:02:24]} 17. b3 {[%clk 0:02:19.3]} 17... Rac8 {[%clk 0:02:18.7]} 18. Rac1
{[%clk 0:02:20]} 18... Rc7 {[%clk 0:02:17.1]} 19. c4 {[%clk 0:02:11.7]} 19...
Rec8 {[%clk 0:02:17.2]} 20. c5 {[%clk 0:02:10.4]} 20... b6 {[%clk 0:02:03.1]}
21. b4 {[%clk 0:01:24.7]} 21... a5 {[%clk 0:02:02.2]} 22. a3 {[%clk 0:01:19.8]}
22... axb4 {[%clk 0:02:01.6]} 23. axb4 {[%clk 0:01:20]} 23... bxc5 {[%clk
0:02:01.5]} 24. bxc5 {[%clk 0:01:18]} 24... f6 {[%clk 0:01:34.3]} 25. Nd3 {[%clk
0:01:04.6]} 25... e5 {[%clk 0:01:33.3]} 26. cxd6 {[%clk 0:01:03.3]} 26... Rxc1
{[%clk 0:01:20.4]} 27. Rxc1 {[%clk 0:01:04.2]} 27... Rxc1+ {[%clk 0:01:14.5]}
28. Nxc1 {[%clk 0:01:03.6]} 28... Qe6 {[%clk 0:01:08]} 29. dxe5 {[%clk
0:00:52.1]} 29... fxe5 {[%clk 0:01:07.4]} 30. Bxe5 {[%clk 0:00:39.5]} 30... Qxe5
{[%clk 0:01:00.7]} 31. d7 {[%clk 0:00:32.7]} 31... Qg5 {[%clk 0:00:33.1]} 32.
Qe8+ {[%clk 0:00:24.9]} 32... Bf8 {[%clk 0:00:33.3]} 33. d8=Q {[%clk 0:00:24.9]}
33... Qxc1+ {[%clk 0:00:33]} 34. Kh2 {[%clk 0:00:23.6]} 34... Qf4+ {[%clk
0:00:33.5]} 35. Kg1 {[%clk 0:00:19.6]} 35... Qc1+ {[%clk 0:00:33.7]} 36. Kh2
{[%clk 0:00:20.2]} 36... Qf4+ {[%clk 0:00:34]} 37. Kh1 {[%clk 0:00:20.4]} 37...
Qc1+ {[%clk 0:00:32.9]} 38. Kh2 {[%clk 0:00:20.6]} 1/2-1/2

[Event "Early-Titled-Tuesday-Blitz-February-06-2024"]
[Site "Chess.com"]
[Date "2024.02.06"]
[Round "7"]
[White "bazar-wokzal"]
[Black "baki83"]
[Result "0-1"]
[WhiteElo "2613"]
[BlackElo "2806"]
[TimeControl "180+1"]
[EndTime "9:17:10 PST"]
[Termination "baki83 won by resignation"]

1. e4 {[%clk 0:03:00.9]} 1... c5 {[%clk 0:02:59.9]} 2. c3 {[%clk 0:03:00.8]}
2... e5 {[%clk 0:02:59.7]} 3. Nf3 {[%clk 0:03:00.5]} 3... Nc6 {[%clk 0:02:59.6]}
4. Bc4 {[%clk 0:03:00.8]} 4... Nf6 {[%clk 0:02:59.4]} 5. Ng5 {[%clk 0:02:59.4]}
5... d5 {[%clk 0:02:58.8]} 6. exd5 {[%clk 0:02:59]} 6... Nxd5 {[%clk 0:02:59.1]}
7. Nxf7 {[%clk 0:02:53.6]} 7... Kxf7 {[%clk 0:02:59]} 8. Qf3+ {[%clk 0:02:53.8]}
8... Ke6 {[%clk 0:02:57.6]} 9. d4 {[%clk 0:02:28]} 9... cxd4 {[%clk 0:02:53.2]}
10. a4 {[%clk 0:02:25.3]} 10... Be7 {[%clk 0:02:40.5]} 11. O-O {[%clk
0:02:24.7]} 11... Rf8 {[%clk 0:02:26.3]} 12. Qe4 {[%clk 0:02:24.6]} 12... Kd6
{[%clk 0:02:24.7]} 13. Qxd5+ {[%clk 0:02:10.8]} 13... Kc7 {[%clk 0:02:24.7]} 14.
f4 {[%clk 0:02:11.1]} 14... Qxd5 {[%clk 0:01:54.6]} 15. Bxd5 {[%clk 0:02:10.9]}
15... d3 {[%clk 0:01:49.3]} 16. Na3 {[%clk 0:01:44.5]} 16... Bc5+ {[%clk
0:01:23]} 17. Kh1 {[%clk 0:01:44.2]} 17... Bxa3 {[%clk 0:01:22.6]} 18. Rxa3
{[%clk 0:01:42.6]} 18... Bg4 {[%clk 0:01:22.3]} 19. Bf3 {[%clk 0:01:13.5]} 19...
Bxf3 {[%clk 0:01:15.6]} 20. gxf3 {[%clk 0:01:11.9]} 20... Rad8 {[%clk
0:01:12.5]} 21. Rd1 {[%clk 0:01:06.4]} 21... exf4 {[%clk 0:01:08.5]} 22. b4
{[%clk 0:00:36.6]} 22... g5 {[%clk 0:00:47.1]} 23. h4 {[%clk 0:00:30]} 23... h6
{[%clk 0:00:44]} 24. Kg2 {[%clk 0:00:21.3]} 24... Rfe8 {[%clk 0:00:40]} 25. hxg5
{[%clk 0:00:15.5]} 25... hxg5 {[%clk 0:00:39.8]} 26. b5 {[%clk 0:00:12.6]} 26...
Re2+ {[%clk 0:00:26.1]} 27. Kh3 {[%clk 0:00:11.4]} 27... Ne5 {[%clk 0:00:22.6]}
0-1

[Event "Early-Titled-Tuesday-Blitz-February-06-2024"]
[Site "Chess.com"]
[Date "2024.02.06"]
[Round "7"]
[White "FormerProdigy"]
[Black "ozates"]
[Result "1/2-1/2"]
[WhiteElo "2998"]
[BlackElo "2632"]
[TimeControl "180+1"]
[EndTime "9:17:11 PST"]
[Termination "Game drawn by repetition"]

1. b3 {[%clk 0:03:00.9]} 1... c5 {[%clk 0:03:00.3]} 2. Bb2 {[%clk 0:03:00.1]}
2... Nc6 {[%clk 0:03:01]} 3. c4 {[%clk 0:02:56.5]} 3... d6 {[%clk 0:03:01.3]} 4.
g3 {[%clk 0:02:52.8]} 4... e5 {[%clk 0:03:01.4]} 5. Nc3 {[%clk 0:02:51.9]} 5...
g6 {[%clk 0:03:01.6]} 6. Bg2 {[%clk 0:02:48.7]} 6... Bg7 {[%clk 0:03:02.1]} 7.
d3 {[%clk 0:02:40.7]} 7... Nge7 {[%clk 0:03:01.7]} 8. e3 {[%clk 0:02:40.6]} 8...
O-O {[%clk 0:02:55.8]} 9. Nge2 {[%clk 0:02:41.1]} 9... Be6 {[%clk 0:02:55.7]}
10. Nd5 {[%clk 0:02:39.4]} 10... Qd7 {[%clk 0:02:50.9]} 11. h4 {[%clk
0:02:33.7]} 11... h6 {[%clk 0:02:49.2]} 12. O-O {[%clk 0:02:25.3]} 12... Bh3
{[%clk 0:02:45]} 13. Nec3 {[%clk 0:02:15.3]} 13... Bxg2 {[%clk 0:02:44.3]} 14.
Kxg2 {[%clk 0:02:16.2]} 14... Nxd5 {[%clk 0:02:44.8]} 15. Nxd5 {[%clk
0:02:13.2]} 15... Ne7 {[%clk 0:02:44.5]} 16. Qf3 {[%clk 0:01:59.3]} 16... Nxd5
{[%clk 0:02:40.3]} 17. Qxd5 {[%clk 0:02:00.2]} 17... Kh7 {[%clk 0:02:37.7]} 18.
f4 {[%clk 0:01:50.8]} 18... Rae8 {[%clk 0:02:31.5]} 19. Rae1 {[%clk 0:01:25.8]}
19... exf4 {[%clk 0:02:30.4]} 20. Bxg7 {[%clk 0:01:26.5]} 20... Kxg7 {[%clk
0:02:30.4]} 21. exf4 {[%clk 0:01:23.2]} 21... Rxe1 {[%clk 0:02:19.7]} 22. Rxe1
{[%clk 0:01:24.1]} 22... Re8 {[%clk 0:02:20.2]} 23. Re4 {[%clk 0:00:45.2]} 23...
Rxe4 {[%clk 0:02:09.9]} 24. dxe4 {[%clk 0:00:46.1]} 24... Qg4 {[%clk 0:02:03.1]}
25. Qd3 {[%clk 0:00:42.2]} 25... Qe6 {[%clk 0:02:01.4]} 26. Qc3+ {[%clk
0:00:26.7]} 26... f6 {[%clk 0:01:57.7]} 27. Qd3 {[%clk 0:00:24.9]} 27... Kf7
{[%clk 0:01:56.8]} 28. Kf3 {[%clk 0:00:21]} 28... h5 {[%clk 0:01:56.5]} 29. f5
{[%clk 0:00:13.5]} 29... gxf5 {[%clk 0:01:52.4]} 30. exf5 {[%clk 0:00:14.4]}
30... Qe5 {[%clk 0:01:51.9]} 31. Qe4 {[%clk 0:00:15]} 31... Kg8 {[%clk
0:01:06.2]} 32. Qxe5 {[%clk 0:00:06.6]} 32... dxe5 {[%clk 0:01:07.1]} 33. a3
{[%clk 0:00:04.3]} 33... a5 {[%clk 0:01:03.6]} 34. g4 {[%clk 0:00:03]} 34...
hxg4+ {[%clk 0:01:03.7]} 35. Kxg4 {[%clk 0:00:03.9]} 35... Kg7 {[%clk
0:01:04.2]} 36. Kf3 {[%clk 0:00:03.2]} 36... Kh6 {[%clk 0:01:04]} 37. Kg4 {[%clk
0:00:03.3]} 37... Kg7 {[%clk 0:00:55.8]} 38. Kf3 {[%clk 0:00:03.1]} 38... Kh6
{[%clk 0:00:55.4]} 39. Kg4 {[%clk 0:00:03.4]} 39... Kg7 {[%clk 0:00:55.8]}
1/2-1/2

[Event "Early-Titled-Tuesday-Blitz-February-06-2024"]
[Site "Chess.com"]
[Date "2024.02.06"]
[Round "7"]
[White "ChainedDowntohell"]
[Black "KanalSzachowy"]
[Result "0-1"]
[WhiteElo "2546"]
[BlackElo "2386"]
[TimeControl "180+1"]
[EndTime "9:17:11 PST"]
[Termination "KanalSzachowy won by checkmate"]

1. d4 {[%clk 0:03:00.9]} 1... Nf6 {[%clk 0:02:59.7]} 2. c4 {[%clk 0:02:59.8]}
2... e6 {[%clk 0:02:59.3]} 3. Nc3 {[%clk 0:02:59.9]} 3... Bb4 {[%clk 0:02:59.1]}
4. e3 {[%clk 0:02:59]} 4... O-O {[%clk 0:02:55.7]} 5. Bd3 {[%clk 0:02:59]} 5...
d5 {[%clk 0:02:53.4]} 6. Nf3 {[%clk 0:02:57.6]} 6... Ne4 {[%clk 0:02:44.7]} 7.
O-O {[%clk 0:02:52]} 7... Bxc3 {[%clk 0:02:42.5]} 8. bxc3 {[%clk 0:02:50.4]}
8... f5 {[%clk 0:02:39.6]} 9. Ba3 {[%clk 0:02:47.5]} 9... Rf6 {[%clk 0:02:38.2]}
10. Ne5 {[%clk 0:02:41.6]} 10... Rh6 {[%clk 0:02:18.3]} 11. g3 {[%clk 0:02:23]}
11... Nd7 {[%clk 0:01:57.4]} 12. f3 {[%clk 0:02:09.6]} 12... Ng5 {[%clk
0:01:55.7]} 13. Rb1 {[%clk 0:01:39.4]} 13... Nxe5 {[%clk 0:01:52.4]} 14. dxe5
{[%clk 0:01:40.3]} 14... b6 {[%clk 0:01:52.7]} 15. cxd5 {[%clk 0:01:11]} 15...
Qxd5 {[%clk 0:01:53.6]} 16. h4 {[%clk 0:00:36.5]} 16... Qxe5 {[%clk 0:01:47.5]}
17. Qe1 {[%clk 0:00:16.3]} 17... Nf7 {[%clk 0:01:46.4]} 18. e4 {[%clk
0:00:14.9]} 18... f4 {[%clk 0:01:44.5]} 19. gxf4 {[%clk 0:00:05.8]} 19... Qxf4
{[%clk 0:01:45.4]} 20. Bc1 {[%clk 0:00:05.7]} 20... Rg6+ {[%clk 0:01:42.8]} 21.
Kh1 {[%clk 0:00:03.1]} 21... Qe5 {[%clk 0:01:43.2]} 22. Rg1 {[%clk 0:00:01.7]}
22... Bb7 {[%clk 0:01:36]} 23. Rxg6 {[%clk 0:00:01.4]} 23... hxg6 {[%clk
0:01:36.9]} 24. Qf2 {[%clk 0:00:02.1]} 24... Rf8 {[%clk 0:01:27]} 25. Bb2 {[%clk
0:00:02.1]} 25... Qh5 {[%clk 0:01:21]} 26. Qg3 {[%clk 0:00:02]} 26... Ne5 {[%clk
0:01:19.1]} 27. Be2 {[%clk 0:00:02.1]} 27... Nxf3 {[%clk 0:01:11.7]} 28. Rf1
{[%clk 0:00:02.2]} 28... Bxe4 {[%clk 0:01:10.3]} 29. Bxf3 {[%clk 0:00:01.2]}
29... Rxf3 {[%clk 0:01:05.5]} 30. Rxf3 {[%clk 0:00:01.5]} 30... Bxf3+ {[%clk
0:00:59.6]} 31. Kh2 {[%clk 0:00:02.1]} 31... Bd5 {[%clk 0:00:59.2]} 32. Bc1
{[%clk 0:00:02.3]} 32... Qe2+ {[%clk 0:00:53.8]} 33. Kh3 {[%clk 0:00:02.4]}
33... Qf1+ {[%clk 0:00:49.8]} 34. Kh2 {[%clk 0:00:02.4]} 34... Qh1# {[%clk
0:00:49.6]} 0-1

[Event "Early-Titled-Tuesday-Blitz-February-06-2024"]
[Site "Chess.com"]
[Date "2024.02.06"]
[Round "7"]
[White "ama18"]
[Black "Akylbek2021"]
[Result "1-0"]
[WhiteElo "2541"]
[BlackElo "2303"]
[TimeControl "180+1"]
[EndTime "9:17:13 PST"]
[Termination "ama18 won on time"]

1. Nf3 {[%clk 0:03:00.4]} 1... Nf6 {[%clk 0:02:59.6]} 2. g3 {[%clk 0:03:00.7]}
2... g6 {[%clk 0:02:59.4]} 3. b3 {[%clk 0:03:01.1]} 3... Bg7 {[%clk 0:02:59.6]}
4. d4 {[%clk 0:03:02]} 4... d5 {[%clk 0:02:57.7]} 5. Bb2 {[%clk 0:03:02.9]} 5...
O-O {[%clk 0:02:58.2]} 6. Bg2 {[%clk 0:03:03.1]} 6... Ne4 {[%clk 0:02:54.9]} 7.
O-O {[%clk 0:03:04]} 7... c5 {[%clk 0:02:55.1]} 8. c3 {[%clk 0:03:02]} 8... Nc6
{[%clk 0:02:53.8]} 9. dxc5 {[%clk 0:03:00.4]} 9... Nxc5 {[%clk 0:02:50.7]} 10.
Nd4 {[%clk 0:02:58.7]} 10... e5 {[%clk 0:02:47.2]} 11. Nf3 {[%clk 0:02:54.9]}
11... Bf5 {[%clk 0:02:24.5]} 12. Na3 {[%clk 0:02:33.7]} 12... Rc8 {[%clk
0:02:20.3]} 13. Rc1 {[%clk 0:02:32.7]} 13... Re8 {[%clk 0:02:18.6]} 14. Re1
{[%clk 0:02:31.9]} 14... h5 {[%clk 0:01:46.4]} 15. Nc2 {[%clk 0:02:27.2]} 15...
Be4 {[%clk 0:01:37.9]} 16. Bh3 {[%clk 0:02:13.3]} 16... Rb8 {[%clk 0:01:26.1]}
17. Nd2 {[%clk 0:02:11.3]} 17... f5 {[%clk 0:01:17.3]} 18. Nxe4 {[%clk
0:02:06.9]} 18... dxe4 {[%clk 0:01:10.2]} 19. Ne3 {[%clk 0:02:04.1]} 19... a5
{[%clk 0:00:57.1]} 20. Qd5+ {[%clk 0:02:00.2]} 20... Qxd5 {[%clk 0:00:56.9]} 21.
Nxd5 {[%clk 0:02:01.1]} 21... b5 {[%clk 0:00:52.6]} 22. Red1 {[%clk 0:01:51.2]}
22... Kf7 {[%clk 0:00:52.6]} 23. b4 {[%clk 0:01:45.9]} 23... Na4 {[%clk
0:00:47.1]} 24. Ba1 {[%clk 0:01:45.6]} 24... Red8 {[%clk 0:00:36.2]} 25. Nc7
{[%clk 0:01:23.6]} 25... Bf8 {[%clk 0:00:06.8]} 26. Rxd8 {[%clk 0:01:14.2]}
26... Nxd8 {[%clk 0:00:07.7]} 27. bxa5 {[%clk 0:01:11.6]} 27... Ne6 {[%clk
0:00:03.3]} 28. Nxe6 {[%clk 0:01:06.3]} 28... Kxe6 {[%clk 0:00:04.2]} 29. c4
{[%clk 0:01:06.7]} 29... Rc8 {[%clk 0:00:04.3]} 30. e3 {[%clk 0:01:03.1]} 30...
Rxc4 {[%clk 0:00:04.4]} 31. Rb1 {[%clk 0:01:01.4]} 31... b4 {[%clk 0:00:02.8]}
32. Bf1 {[%clk 0:01:00.8]} 32... Rc2 {[%clk 0:00:02.8]} 33. a6 {[%clk 0:00:57]}
33... Rxa2 {[%clk 0:00:03]} 34. Bc4+ {[%clk 0:00:56.6]} 34... Kd6 {[%clk
0:00:02.8]} 35. Bxa2 {[%clk 0:00:57.5]} 35... Kc5 {[%clk 0:00:02.5]} 36. Rc1+
{[%clk 0:00:57.3]} 36... Kb5 {[%clk 0:00:02.9]} 37. a7 {[%clk 0:00:56.7]} 37...
Nb6 {[%clk 0:00:02.8]} 38. Rc8 {[%clk 0:00:56.7]} 1-0

[Event "Early-Titled-Tuesday-Blitz-February-06-2024"]
[Site "Chess.com"]
[Date "2024.02.06"]
[Round "7"]
[White "MokshAD1603"]
[Black "KuzubovYuriy"]
[Result "0-1"]
[WhiteElo "2612"]
[BlackElo "2911"]
[TimeControl "180+1"]
[EndTime "9:17:15 PST"]
[Termination "KuzubovYuriy won by resignation"]

1. d4 {[%clk 0:02:57.8]} 1... g6 {[%clk 0:03:00]} 2. e4 {[%clk 0:02:52.3]} 2...
Bg7 {[%clk 0:03:00.4]} 3. Nf3 {[%clk 0:02:42.1]} 3... d6 {[%clk 0:03:00.7]} 4.
Bc4 {[%clk 0:02:34.7]} 4... c6 {[%clk 0:03:01.2]} 5. O-O {[%clk 0:02:32.5]} 5...
d5 {[%clk 0:02:59.9]} 6. Bd3 {[%clk 0:02:21.9]} 6... dxe4 {[%clk 0:02:57.1]} 7.
Bxe4 {[%clk 0:02:22.2]} 7... Nf6 {[%clk 0:02:55.6]} 8. Bd3 {[%clk 0:02:22.7]}
8... O-O {[%clk 0:02:55.6]} 9. h3 {[%clk 0:02:23.4]} 9... Nbd7 {[%clk
0:02:54.6]} 10. Re1 {[%clk 0:02:23.3]} 10... c5 {[%clk 0:02:53.4]} 11. Nc3
{[%clk 0:02:14.7]} 11... a6 {[%clk 0:02:44.3]} 12. Be3 {[%clk 0:02:10.6]} 12...
Qc7 {[%clk 0:02:38.1]} 13. dxc5 {[%clk 0:01:57.2]} 13... Nxc5 {[%clk 0:02:36.8]}
14. Bc4 {[%clk 0:01:57.6]} 14... b6 {[%clk 0:01:55.2]} 15. Qc1 {[%clk
0:01:46.8]} 15... Bb7 {[%clk 0:01:38.4]} 16. Bf4 {[%clk 0:01:46.7]} 16... Qc8
{[%clk 0:01:35.6]} 17. Rxe7 {[%clk 0:01:34.5]} 17... Bxf3 {[%clk 0:01:33]} 18.
gxf3 {[%clk 0:01:33.6]} 18... Qxh3 {[%clk 0:01:26]} 19. Qe3 {[%clk 0:01:33.3]}
19... Nh5 {[%clk 0:01:09.7]} 20. Bh2 {[%clk 0:01:31.1]} 20... Bf6 {[%clk
0:01:03.4]} 21. Nd5 {[%clk 0:00:49.2]} 21... Bxe7 {[%clk 0:01:03.3]} 22. Qxe7
{[%clk 0:00:49.6]} 22... Rae8 {[%clk 0:00:53.4]} 23. Be5 {[%clk 0:00:49.2]}
23... Qxf3 {[%clk 0:00:45.1]} 24. Re1 {[%clk 0:00:11.1]} 24... Qg4+ {[%clk
0:00:43.2]} 25. Kh2 {[%clk 0:00:11.3]} 25... Qxc4 {[%clk 0:00:41.7]} 26. Qf6
{[%clk 0:00:05.8]} 26... Nxf6 {[%clk 0:00:35.3]} 27. Nxf6+ {[%clk 0:00:06.7]}
27... Kh8 {[%clk 0:00:34.1]} 28. Nxe8+ {[%clk 0:00:07.3]} 28... f6 {[%clk
0:00:33.9]} 29. Bxf6+ {[%clk 0:00:05.6]} 29... Rxf6 {[%clk 0:00:33.6]} 30. Nxf6
{[%clk 0:00:06.5]} 30... Qh4+ {[%clk 0:00:33.3]} 0-1